[Event "17th Memorial Lezcano Montalvo 2025"]
[Site "Gran Canaria"]
[Date "2025.04.13"]
[Round "2.16"]
[White "Barski, Radoslaw"]
[Black "Bolivar Castro, Alejandro"]
[Result "1-0"]
[Annotator "ChessBase"]
[ECO "B07"]
[WhiteElo "2385"]
[BlackElo "2006"]
[PlyCount "61"]
[EventDate "2025.04.13"]
[EventType "swiss"]
[EventCountry "ESP"]
[SourceTitle "playchess.com"]
[Source "ChessBase"]
[SourceQuality "1"]
[TimeControl "5400+30"]

1. e4 {[%emt 0:00:05]} d6 {[%emt 0:00:08]} 2. d4 {[%emt 0:00:09]} Nf6 {[%emt 0:00:05]} 3. Nc3 {[%emt 0:00:09]} e5 {[%emt 0:00:04]} 4. Nge2 {[%emt 0:00:10]} Be7 {[%emt 0:00:32]} 5. h3 {[%emt 0:00:12]} O-O {[%emt 0:00:54]} 6. g4 {[%emt 0:00:06]} c6 {[%emt 0:05:03]} 7. Bg2 {[%emt 0:00:38]} Nbd7 {[%emt 0:00:07]} 8. O-O {[%emt 0:00:20]} h6 {[%emt 0:00:17]} 9. Ng3 {[%emt 0:03:45]} Re8 {[%emt 0:00:19]} 10. Be3 {[%emt 0:03:58]} Nf8 {[%emt 0:00:28]} 11. f4 {[%emt 0:12:28]} b6 {[%emt 0:00:18]} 12. Qd2 {[%emt 0:35:43]} exf4 {[%emt 0:10:08]} 13. Rxf4 {[%emt 0:02:08]} Ng6 {[%emt 0:01:02]} 14. Rf2 {[%emt 0:00:56]} Nh7 {[%emt 0:11:34]} 15. Raf1 {[%emt 0:11:10]} Ng5 {[%emt 0:23:47]} 16. Nf5 {[%emt 0:04:19]} Bxf5 {[%emt 0:03:31]} 17. gxf5 {[%emt 0:00:13]} Nh4 {[%emt 0:01:16]} 18. Rf4 {[%emt 0:01:20]} Nxg2 {[%emt 0:08:44]} 19. Qxg2 {[%emt 0:00:20]} Bf6 {[%emt 0:10:03]} 20. Rg4 {[%emt 0:01:26]} Nh7 {[%emt 0:02:40]} 21. Bxh6 {[%emt 0:03:48]} Bxd4+ {[%emt 0:00:04]} 22. Kh1 {[%emt 0:00:06]} Kf8 {[%emt 0:00:18]} 23. f6 {[%emt 0:04:36]} Nxf6 {[%emt 0:09:00]} 24. Bxg7+ {[%emt 0:00:10]} Ke7 {[%emt 0:00:05]} 25. Bxf6+ {[%emt 0:00:21]} Bxf6 {[%emt 0:00:22]} 26. Qf3 {[%emt 0:00:04]} Kd7 {[%emt 0:01:58]} 27. Qxf6 {[%emt 0:00:08]} Re7 {[%emt 0:00:17]} 28. Rg7 {[%emt 0:01:00]} Qh8 {[%emt 0:00:38]} 29. Qf5+ {[%emt 0:00:07]} Kc7 {[%emt 0:00:22]} 30. Qh7 {[%emt 0:01:48]} Kd7 {[%emt 0:04:18]} 31. Rfxf7 {[%emt 0:00:19]} 1-0

[Event "17th Memorial Lezcano Montalvo 2025"]
[Site "Gran Canaria"]
[Date "2025.04.13"]
[Round "2.17"]
[White "Schmitz, Andreas Arnold"]
[Black "Narciso Dublan, Marc"]
[Result "0-1"]
[Annotator "ChessBase"]
[ECO "C25"]
[WhiteElo "1967"]
[BlackElo "2376"]
[PlyCount "83"]
[EventDate "2025.04.13"]
[EventType "swiss"]
[EventCountry "ESP"]
[SourceTitle "playchess.com"]
[Source "ChessBase"]
[SourceQuality "1"]
[TimeControl "5400+30"]

1. e4 {[%emt 0:00:03]} e5 {[%emt 0:00:15]} 2. Nc3 {[%emt 0:00:24]} Bb4 {[%emt 0:00:11]} 3. Nf3 {[%emt 0:01:55]} d6 {[%emt 0:00:31]} 4. d4 {[%emt 0:01:45]} Nd7 {[%emt 0:01:27]} 5. Bd2 {[%emt 0:09:15]} Ngf6 {[%emt 0:00:36]} 6. dxe5 {[%emt 0:00:57]} dxe5 {[%emt 0:00:20]} 7. Bc4 {[%emt 0:02:04]} O-O {[%emt 0:00:19]} 8. Qe2 {[%emt 0:01:41]} c6 {[%emt 0:01:49]} 9. O-O-O {[%emt 0:04:16]} b5 {[%emt 0:04:58]} 10. Bd3 {[%emt 0:05:38]} Qe7 {[%emt 0:05:15]} 11. Nh4 {[%emt 0:03:34]} g6 {[%emt 0:05:29]} 12. Bh6 {[%emt 0:08:01]} Rd8 {[%emt 0:05:02]} 13. Nb1 {[%emt 0:00:13]} Nc5 {[%emt 0:01:56]} 14. g3 {[%emt 0:04:14]} Ng4 {[%emt 0:02:42]} 15. Be3 {[%emt 0:01:31]} Be6 {[%emt 0:12:23]} 16. a3 {[%emt 0:03:30]} Nxd3+ {[%emt 0:08:59]} 17. Rxd3 {[%emt 0:02:53]} Rxd3 {[%emt 0:00:46]} 18. cxd3 {[%emt 0:01:11]} Bc5 {[%emt 0:00:43]} 19. Ng2 {[%emt 0:06:23]} a5 {[%emt 0:06:40]} 20. f4 {[%emt 0:02:35]} Rd8 {[%emt 0:08:28]} 21. Bxc5 {[%emt 0:05:27]} Qxc5+ {[%emt 0:00:08]} 22. Qc2 {[%emt 0:00:40]} Nf2 {[%emt 0:01:19]} 23. Qxc5 {[%emt 0:01:12]} Nxd3+ {[%emt 0:00:06]} 24. Kc2 {[%emt 0:00:12]} Nxc5 {[%emt 0:00:08]} 25. Nd2 {[%emt 0:03:15]} Nxe4 {[%emt 0:01:36]} 26. Nxe4 {[%emt 0:05:10]} Bf5 {[%emt 0:00:08]} 27. Re1 {[%emt 0:00:23]} Rd4 {[%emt 0:00:11]} 28. Kc1 {[%emt 0:04:10]} Bxe4 {[%emt 0:01:21]} 29. Ne3 {[%emt 0:00:12]} exf4 {[%emt 0:01:04]} 30. gxf4 {[%emt 0:00:09]} f5 {[%emt 0:00:53]} 31. Rd1 {[%emt 0:01:44]} Rxd1+ {[%emt 0:01:35]} 32. Nxd1 {[%emt 0:00:58]} c5 {[%emt 0:04:56]} 33. Nc3 {[%emt 0:02:05]} Bc6 {[%emt 0:00:12]} 34. Kd2 {[%emt 0:01:40]} Kf7 {[%emt 0:00:42]} 35. Nd1 {[%emt 0:00:42]} Kf6 {[%emt 0:05:06]} 36. h4 {[%emt 0:00:35]} h6 {[%emt 0:00:36]} 37. Kc3 {[%emt 0:03:18]} g5 {[%emt 0:01:27]} 38. hxg5+ {[%emt 0:00:11]} hxg5 {[%emt 0:00:07]} 39. fxg5+ {[%emt 0:00:08]} Kxg5 {[%emt 0:00:06]} 40. b4 {[%emt 0:00:18]} cxb4+ {[%emt 0:00:52]} 41. axb4 {[%emt 0:00:08]} a4 {[%emt 0:00:41]} 42. Kd4 {[%emt 0:16:50]} 0-1

[Event "17th Memorial Lezcano Montalvo 2025"]
[Site "Gran Canaria"]
[Date "2025.04.13"]
[Round "2.18"]
[White "Strikovic, Aleksa"]
[Black "Gonzalez Martinez, Miguel Angel"]
[Result "1-0"]
[Annotator "ChessBase"]
[ECO "A55"]
[WhiteElo "2367"]
[BlackElo "2134"]
[PlyCount "101"]
[EventDate "2025.04.13"]
[EventType "swiss"]
[EventCountry "ESP"]
[SourceTitle "playchess.com"]
[Source "ChessBase"]
[SourceQuality "1"]
[TimeControl "5400+30"]

1. c4 {[%emt 0:00:03]} Nf6 {[%emt 0:00:18]} 2. g3 {[%emt 0:01:01]} d6 {[%emt 0:03:05]} 3. d4 {[%emt 0:00:11]} Nbd7 {[%emt 0:00:09]} 4. Nf3 {[%emt 0:00:35]} e5 {[%emt 0:00:06]} 5. Nc3 {[%emt 0:00:06]} c6 {[%emt 0:00:17]} 6. e4 {[%emt 0:00:07]} Be7 {[%emt 0:00:11]} 7. Bg2 {[%emt 0:00:07]} O-O {[%emt 0:00:11]} 8. O-O {[%emt 0:00:05]} Re8 {[%emt 0:00:20]} 9. Qc2 {[%emt 0:00:15]} a6 {[%emt 0:00:47]} 10. Rd1 {[%emt 0:00:19]} Qc7 {[%emt 0:05:23]} 11. h3 {[%emt 0:00:37]} b5 {[%emt 0:03:14]} 12. Be3 {[%emt 0:01:30]} b4 {[%emt 0:06:59]} 13. Na4 {[%emt 0:01:47]} c5 {[%emt 0:01:59]} 14. d5 {[%emt 0:00:19]} h6 {[%emt 0:01:00]} 15. a3 {[%emt 0:03:38]} b3 {[%emt 0:05:01]} 16. Qd3 {[%emt 0:02:30]} Nf8 {[%emt 0:05:20]} 17. Nd2 {[%emt 0:01:57]} Rb8 {[%emt 0:00:04]} 18. Nc3 {[%emt 0:00:24]} Bd7 {[%emt 0:01:11]} 19. Ne2 {[%emt 0:05:15]} Rb7 {[%emt 0:02:28]} 20. Rf1 {[%emt 0:10:49]} Qc8 {[%emt 0:04:53]} 21. Kh2 {[%emt 0:00:09]} N6h7 {[%emt 0:00:10]} 22. Rab1 {[%emt 0:02:22]} f5 {[%emt 0:00:55]} 23. f3 {[%emt 0:05:34]} Bg5 {[%emt 0:01:20]} 24. Nxb3 {[%emt 0:05:15]} Bxe3 {[%emt 0:05:00]} 25. Qxe3 {[%emt 0:00:08]} Qb8 {[%emt 0:05:42]} 26. Nd2 {[%emt 0:01:35]} Ng6 {[%emt 0:01:15]} 27. b3 {[%emt 0:00:56]} f4 {[%emt 0:04:37]} 28. gxf4 {[%emt 0:00:42]} exf4 {[%emt 0:00:09]} 29. Nxf4 {[%emt 0:00:07]} Nh4 {[%emt 0:01:35]} 30. Qf2 {[%emt 0:04:51]} Qd8 {[%emt 0:01:20]} 31. Nd3 {[%emt 0:04:48]} Qg5 {[%emt 0:06:19]} 32. f4 {[%emt 0:01:13]} Qh5 {[%emt 0:00:02]} 33. Bf3 {[%emt 0:00:09]} Nxf3+ {[%emt 0:01:03]} 34. Qxf3 {[%emt 0:00:06]} Qh4 {[%emt 0:01:50]} 35. Rg1 {[%emt 0:03:11]} g5 {[%emt 0:03:32]} 36. f5 {[%emt 0:01:55]} Nf6 {[%emt 0:01:38]} 37. Nf4 {[%emt 0:00:11]} g4 {[%emt 0:08:30]} 38. Rbf1 {[%emt 0:15:01]} Kh7 {[%emt 0:05:18]} 39. Rxg4 {[%emt 0:00:21]} Nxg4+ {[%emt 0:00:48]} 40. Qxg4 {[%emt 0:00:02]} Qf6 {[%emt 0:01:39]} 41. Rg1 {[%emt 0:00:08]} a5 {[%emt 0:01:57]} 42. a4 {[%emt 0:00:08]} Bxa4 {[%emt 0:01:52]} 43. bxa4 {[%emt 0:00:17]} Rb2 {[%emt 0:00:46]} 44. Qg6+ {[%emt 0:00:57]} Qxg6 {[%emt 0:00:07]} 45. fxg6+ {[%emt 0:00:08]} Kg8 {[%emt 0:00:44]} 46. Rg2 {[%emt 0:00:04]} Rb4 {[%emt 0:01:17]} 47. Nh5 {[%emt 0:00:48]} Re5 {[%emt 0:00:03]} 48. Nf6+ {[%emt 0:00:12]} Kg7 {[%emt 0:00:15]} 49. Nf3 {[%emt 0:00:13]} Re7 {[%emt 0:01:25]} 50. Nh5+ {[%emt 0:00:08]} Kg8 {[%emt 0:00:14]} 51. Nh4 {[%emt 0:00:05]} 1-0

[Event "17th Memorial Lezcano Montalvo 2025"]
[Site "Gran Canaria"]
[Date "2025.04.13"]
[Round "2.19"]
[White "Rivero Tacoronte, Gabriel"]
[Black "Garcia Padron, Jose"]
[Result "1-0"]
[Annotator "ChessBase"]
[ECO "C43"]
[WhiteElo "1963"]
[BlackElo "2355"]
[PlyCount "119"]
[EventDate "2025.04.13"]
[EventType "swiss"]
[EventCountry "ESP"]
[SourceTitle "playchess.com"]
[Source "ChessBase"]
[SourceQuality "1"]
[TimeControl "5400+30"]

1. e4 {[%emt 0:00:03]} e5 {[%emt 0:00:09]} 2. Nf3 {[%emt 0:00:08]} Nf6 {[%emt 0:00:05]} 3. d4 {[%emt 0:00:42]} exd4 {[%emt 0:01:20]} 4. e5 {[%emt 0:01:22]} Ne4 {[%emt 0:00:07]} 5. Qxd4 {[%emt 0:00:21]} d5 {[%emt 0:00:19]} 6. exd6 {[%emt 0:00:59]} Nxd6 {[%emt 0:00:07]} 7. Nc3 {[%emt 0:00:46]} Nc6 {[%emt 0:00:09]} 8. Qf4 {[%emt 0:01:19]} Nf5 {[%emt 0:04:51]} 9. Bd2 {[%emt 0:04:03]} Bd6 {[%emt 0:03:22]} 10. Qe4+ {[%emt 0:03:10]} Nfe7 {[%emt 0:00:20]} 11. Nb5 {[%emt 0:14:43]} Bf5 {[%emt 0:05:14]} 12. Qa4 {[%emt 0:04:57]} Bc5 {[%emt 0:14:03]} 13. O-O-O {[%emt 0:00:04]} Qc8 {[%emt 0:00:18]} 14. Bf4 {[%emt 0:17:41]} Bb6 {[%emt 0:00:21]} 15. Bd3 {[%emt 0:13:12]} O-O {[%emt 0:13:36]} 16. Nbd4 {[%emt 0:00:02]} Bd7 {[%emt 0:08:36]} 17. Qc4 {[%emt 0:02:21]} Na5 {[%emt 0:14:57]} 18. Qc3 {[%emt 0:00:29]} c5 {[%emt 0:04:10]} 19. Nb5 {[%emt 0:08:03]} Bc6 {[%emt 0:01:22]} 20. Qe5 {[%emt 0:13:02]} Ng6 {[%emt 0:08:46]} 21. Qh5 {[%emt 0:00:03]} Bxf3 {[%emt 0:00:09]} 22. Qxf3 {[%emt 0:01:30]} c4 {[%emt 0:03:53]} 23. Be4 {[%emt 0:07:30]} Qc5 {[%emt 0:01:04]} 24. Bd6 {[%emt 0:00:15]} Qxb5 {[%emt 0:01:26]} 25. Bxf8 {[%emt 0:00:03]} Rxf8 {[%emt 0:01:16]} 26. Rd5 {[%emt 0:00:01]} Qa4 {[%emt 0:01:00]} 27. Kb1 {[%emt 0:01:33]} Nc6 {[%emt 0:00:20]} 28. c3 {[%emt 0:01:43]} Nce7 {[%emt 0:03:06]} 29. Rd2 {[%emt 0:01:09]} Nc6 {[%emt 0:01:12]} 30. Qf5 {[%emt 0:00:42]} Qa5 {[%emt 0:02:27]} 31. Rd5 {[%emt 0:00:04]} Qa6 {[%emt 0:00:05]} 32. Rd7 {[%emt 0:00:30]} Nce7 {[%emt 0:01:43]} 33. Rxe7 {[%emt 0:04:30]} Bd8 {[%emt 0:01:11]} 34. Rxb7 {[%emt 0:00:00]} Qd6 {[%emt 0:00:46]} 35. Rd7 {[%emt 0:00:00]} Qb8 {[%emt 0:02:13]} 36. h4 {[%emt 0:00:00]} Qf4 {[%emt 0:01:00]} 37. Qxf4 {[%emt 0:00:00]} Nxf4 {[%emt 0:00:02]} 38. Rxa7 {[%emt 0:00:00]} f5 {[%emt 0:00:50]} 39. Bc6 {[%emt 0:00:00]} Bb6 {[%emt 0:00:12]} 40. Rd7 {[%emt 0:00:47]} Bxf2 {[%emt 0:00:24]} 41. Rf1 {[%emt 0:00:17]} Bg3 {[%emt 0:00:11]} 42. Rf3 {[%emt 0:00:32]} Bh2 {[%emt 0:00:42]} 43. g3 {[%emt 0:00:05]} Ng6 {[%emt 0:00:11]} 44. Rd2 {[%emt 0:02:31]} Bg1 {[%emt 0:01:05]} 45. Bd5+ {[%emt 0:00:10]} Kh8 {[%emt 0:00:06]} 46. Bxc4 {[%emt 0:00:27]} f4 {[%emt 0:00:51]} 47. gxf4 {[%emt 0:00:28]} Nxh4 {[%emt 0:00:09]} 48. Rfd3 {[%emt 0:00:54]} Bb6 {[%emt 0:01:58]} 49. Rd6 {[%emt 0:00:42]} Bc7 {[%emt 0:00:10]} 50. Rd7 {[%emt 0:00:37]} Bb6 {[%emt 0:00:16]} 51. R2d6 {[%emt 0:00:34]} Bc5 {[%emt 0:00:47]} 52. Rc6 {[%emt 0:00:01]} Be3 {[%emt 0:00:09]} 53. Rcc7 {[%emt 0:00:38]} Bxf4 {[%emt 0:01:09]} 54. Rf7 {[%emt 0:00:08]} Ng6 {[%emt 0:00:10]} 55. Rxf8+ {[%emt 0:01:00]} Nxf8 {[%emt 0:00:02]} 56. Rc8 {[%emt 0:00:12]} Bd6 {[%emt 0:00:02]} 57. a4 {[%emt 0:00:15]} g5 {[%emt 0:00:18]} 58. a5 {[%emt 0:00:31]} g4 {[%emt 0:00:23]} 59. a6 {[%emt 0:00:10]} g3 {[%emt 0:00:04]} 60. Bf1 {[%emt 0:00:21]} 1-0

[Event "17th Memorial Lezcano Montalvo 2025"]
[Site "Gran Canaria"]
[Date "2025.04.13"]
[Round "2.20"]
[White "Barlov, Dragan"]
[Black "Ramirez Maillo, Juan Adonay"]
[Result "0-1"]
[Annotator "ChessBase"]
[ECO "D26"]
[WhiteElo "2351"]
[BlackElo "1956"]
[PlyCount "80"]
[EventDate "2025.04.13"]
[EventType "swiss"]
[EventCountry "ESP"]
[SourceTitle "playchess.com"]
[Source "ChessBase"]
[SourceQuality "1"]
[TimeControl "5400+30"]

1. d4 {[%emt 0:00:26]} d5 {[%emt 0:00:13]} 2. c4 {[%emt 0:00:19]} e6 {[%emt 0:00:07]} 3. Nf3 {[%emt 0:00:57]} dxc4 {[%emt 0:00:55]} 4. e3 {[%emt 0:02:03]} Nf6 {[%emt 0:02:13]} 5. Bxc4 {[%emt 0:02:13]} a6 {[%emt 0:00:46]} 6. Qe2 {[%emt 0:08:28]} b5 {[%emt 0:00:56]} 7. Bd3 {[%emt 0:00:30]} Nbd7 {[%emt 0:02:31]} 8. a4 {[%emt 0:09:19]} Bb7 {[%emt 0:04:20]} 9. O-O {[%emt 0:03:05]} Be7 {[%emt 0:00:08]} 10. axb5 {[%emt 0:21:29]} axb5 {[%emt 0:01:32]} 11. Rxa8 {[%emt 0:00:06]} Qxa8 {[%emt 0:00:07]} 12. Bxb5 {[%emt 0:00:06]} c6 {[%emt 0:00:10]} 13. Bd3 {[%emt 0:02:56]} c5 {[%emt 0:01:41]} 14. dxc5 {[%emt 0:01:50]} Bxc5 {[%emt 0:02:20]} 15. Nc3 {[%emt 0:03:29]} O-O {[%emt 0:00:15]} 16. e4 {[%emt 0:09:41]} Rd8 {[%emt 0:07:57]} 17. Bg5 {[%emt 0:04:47]} h6 {[%emt 0:00:57]} 18. Bh4 {[%emt 0:00:27]} Bb4 {[%emt 0:03:35]} 19. Re1 {[%emt 0:16:24]} g5 {[%emt 0:21:05]} 20. Nxg5 {[%emt 0:02:10]} hxg5 {[%emt 0:00:08]} 21. Bxg5 {[%emt 0:00:20]} Bxc3 {[%emt 0:00:11]} 22. bxc3 {[%emt 0:00:20]} Qa5 {[%emt 0:06:57]} 23. h4 {[%emt 0:02:21]} Qxc3 {[%emt 0:01:23]} 24. Rc1 {[%emt 0:05:33]} Qe5 {[%emt 0:01:06]} 25. Qf3 {[%emt 0:03:04]} Rc8 {[%emt 0:01:09]} 26. Rxc8+ {[%emt 0:00:28]} Bxc8 {[%emt 0:00:01]} 27. Bf4 {[%emt 0:00:06]} Qh5 {[%emt 0:00:40]} 28. Qg3+ {[%emt 0:00:53]} Qg4 {[%emt 0:00:24]} 29. Qxg4+ {[%emt 0:00:15]} Nxg4 {[%emt 0:00:01]} 30. f3 {[%emt 0:00:00]} Nge5 {[%emt 0:00:28]} 31. Be2 {[%emt 0:00:12]} Ng6 {[%emt 0:00:38]} 32. Bg3 {[%emt 0:00:01]} Nf6 {[%emt 0:01:52]} 33. Be1 {[%emt 0:00:31]} Nf4 {[%emt 0:00:25]} 34. Bc4 {[%emt 0:01:17]} Nd7 {[%emt 0:01:11]} 35. Bd2 {[%emt 0:00:52]} Ne5 {[%emt 0:01:18]} 36. Bb5 {[%emt 0:00:26]} Nfg6 {[%emt 0:01:49]} 37. h5 {[%emt 0:00:14]} Ne7 {[%emt 0:02:04]} 38. Kf2 {[%emt 0:00:49]} Bd7 {[%emt 0:00:33]} 39. Be2 {[%emt 0:00:10]} f5 {[%emt 0:03:04]} 40. Bc3 {[%emt 0:00:52]} N5c6 {[%emt 0:00:18]} 0-1

[Event "17th Memorial Lezcano Montalvo 2025"]
[Site "Gran Canaria"]
[Date "2025.04.13"]
[Round "2.21"]
[White "Perez Rosales, Pedro"]
[Black "Matnadze Bujiashvili, Ann"]
[Result "0-1"]
[Annotator "ChessBase"]
[ECO "A14"]
[WhiteElo "1942"]
[BlackElo "2329"]
[PlyCount "49"]
[EventDate "2025.04.13"]
[EventType "swiss"]
[EventCountry "ESP"]
[SourceTitle "playchess.com"]
[Source "ChessBase"]
[SourceQuality "1"]
[TimeControl "5400+30"]

1. Nf3 {[%emt 0:00:04]} Nf6 {[%emt 0:00:11]} 2. g3 {[%emt 0:00:13]} e6 {[%emt 0:00:07]} 3. Bg2 {[%emt 0:00:09]} b6 {[%emt 0:00:12]} 4. O-O {[%emt 0:00:34]} Bb7 {[%emt 0:00:05]} 5. c4 {[%emt 0:00:22]} c5 {[%emt 0:00:18]} 6. b3 {[%emt 0:00:31]} Be7 {[%emt 0:00:41]} 7. Bb2 {[%emt 0:00:06]} O-O {[%emt 0:01:17]} 8. Nc3 {[%emt 0:01:15]} d5 {[%emt 0:04:13]} 9. cxd5 {[%emt 0:00:08]} Nxd5 {[%emt 0:00:35]} 10. Nxd5 {[%emt 0:01:51]} Bxd5 {[%emt 0:00:27]} 11. Re1 {[%emt 0:03:28]} Na6 {[%emt 0:06:30]} 12. e4 {[%emt 0:00:24]} Bb7 {[%emt 0:00:12]} 13. a3 {[%emt 0:01:31]} Bf6 {[%emt 0:05:02]} 14. Qc2 {[%emt 0:05:43]} Bxb2 {[%emt 0:02:52]} 15. Qxb2 {[%emt 0:00:09]} Qf6 {[%emt 0:02:25]} 16. Ne5 {[%emt 0:11:26]} Rfd8 {[%emt 0:02:22]} 17. f4 {[%emt 0:00:16]} Rac8 {[%emt 0:06:02]} 18. Rac1 {[%emt 0:01:05]} Nc7 {[%emt 0:00:17]} 19. Bf1 {[%emt 0:00:58]} h5 {[%emt 0:07:23]} 20. h4 {[%emt 0:00:48]} Rd4 {[%emt 0:01:54]} 21. Qc2 {[%emt 0:00:36]} Rcd8 {[%emt 0:04:33]} 22. Bg2 {[%emt 1:09:53]} R4d7 {[%emt 0:53:52]} 23. a4 Qg6 {[%emt 0:00:30]} 24. Nf3 Qf6 25. Bf1 {[%emt 0:01:30]} 0-1

[Event "17th Memorial Lezcano Montalvo 2025"]
[Site "Gran Canaria"]
[Date "2025.04.13"]
[Round "2.22"]
[White "Sanz Wawer, Daniel"]
[Black "Blanco Barros, Juan Carlos"]
[Result "1-0"]
[Annotator "ChessBase"]
[ECO "C06"]
[WhiteElo "2316"]
[BlackElo "1941"]
[PlyCount "73"]
[EventDate "2025.04.13"]
[EventType "swiss"]
[EventCountry "ESP"]
[SourceTitle "playchess.com"]
[Source "ChessBase"]
[SourceQuality "1"]
[TimeControl "5400+30"]

1. e4 {[%emt 0:00:05]} e6 {[%emt 0:00:14]} 2. d4 {[%emt 0:00:06]} d5 {[%emt 0:00:08]} 3. Nd2 {[%emt 0:00:07]} Nf6 {[%emt 0:00:10]} 4. e5 {[%emt 0:00:10]} Nfd7 {[%emt 0:00:13]} 5. Bd3 {[%emt 0:00:07]} c5 {[%emt 0:00:12]} 6. c3 {[%emt 0:00:08]} Nc6 {[%emt 0:00:14]} 7. Ne2 {[%emt 0:00:09]} cxd4 {[%emt 0:00:11]} 8. cxd4 {[%emt 0:00:05]} f6 {[%emt 0:00:12]} 9. exf6 {[%emt 0:00:16]} Nxf6 {[%emt 0:00:11]} 10. O-O {[%emt 0:00:12]} Bd6 {[%emt 0:00:12]} 11. Nf3 {[%emt 0:00:10]} O-O {[%emt 0:00:13]} 12. Bf4 {[%emt 0:00:15]} Ne4 {[%emt 0:00:14]} 13. Bxd6 {[%emt 0:06:47]} Nxd6 {[%emt 0:00:11]} 14. Ng3 {[%emt 0:02:08]} Qf6 {[%emt 0:02:06]} 15. Qd2 {[%emt 0:05:29]} Bd7 {[%emt 0:01:48]} 16. Rae1 {[%emt 0:01:55]} Qf4 {[%emt 0:06:50]} 17. Re3 {[%emt 0:06:16]} Rac8 {[%emt 0:12:46]} 18. b3 {[%emt 0:00:56]} Qh6 {[%emt 0:00:28]} 19. Bb1 {[%emt 0:03:26]} Rxf3 {[%emt 0:03:08]} 20. gxf3 {[%emt 0:00:25]} Rf8 {[%emt 0:00:11]} 21. Rfe1 {[%emt 0:13:15]} Qh4 {[%emt 0:10:18]} 22. Ne2 {[%emt 0:07:10]} Rf6 {[%emt 0:24:42]} 23. f4 {[%emt 0:02:31]} Rh6 {[%emt 0:12:02]} 24. h3 {[%emt 0:02:06]} e5 {[%emt 0:01:11]} 25. dxe5 {[%emt 0:02:41]} Bxh3 {[%emt 0:02:43]} 26. Qxd5+ {[%emt 0:02:36]} Be6 {[%emt 0:00:32]} 27. Qg2 {[%emt 0:01:02]} Nf5 {[%emt 0:01:56]} 28. Bxf5 {[%emt 0:02:57]} Bxf5 {[%emt 0:00:10]} 29. Rg3 {[%emt 0:00:52]} Qe7 {[%emt 0:02:34]} 30. Rd1 {[%emt 0:01:01]} Kh8 {[%emt 0:04:38]} 31. Rg5 {[%emt 0:06:07]} Bd7 {[%emt 0:00:49]} 32. Rxg7 {[%emt 0:05:14]} Qxg7 {[%emt 0:00:14]} 33. Qxg7+ {[%emt 0:00:04]} Kxg7 {[%emt 0:00:04]} 34. Rxd7+ {[%emt 0:00:05]} Kg6 {[%emt 0:01:37]} 35. Ng3 {[%emt 0:00:33]} Rh4 {[%emt 0:00:27]} 36. f5+ {[%emt 0:00:58]} Kg5 {[%emt 0:00:31]} 37. e6 {[%emt 0:00:39]} 1-0

[Event "17th Memorial Lezcano Montalvo 2025"]
[Site "Gran Canaria"]
[Date "2025.04.13"]
[Round "2.23"]
[White "de Leon Navarro, Claudio"]
[Black "Torres Rebolledo, Alvaro"]
[Result "0-1"]
[Annotator "ChessBase"]
[ECO "B23"]
[WhiteElo "1918"]
[BlackElo "2311"]
[PlyCount "114"]
[EventDate "2025.04.13"]
[EventType "swiss"]
[EventCountry "ESP"]
[SourceTitle "playchess.com"]
[Source "ChessBase"]
[SourceQuality "1"]
[TimeControl "5400+30"]

1. e4 {[%emt 0:00:32]} c5 {[%emt 0:00:11]} 2. Nc3 {[%emt 0:00:09]} Nc6 {[%emt 0:00:04]} 3. Bb5 {[%emt 0:00:06]} Nd4 {[%emt 0:00:29]} 4. Nf3 {[%emt 0:00:30]} a6 {[%emt 0:01:14]} 5. Bd3 {[%emt 0:00:13]} e6 {[%emt 0:00:29]} 6. Nxd4 {[%emt 0:02:01]} cxd4 {[%emt 0:00:10]} 7. Ne2 {[%emt 0:00:07]} d5 {[%emt 0:08:30]} 8. exd5 {[%emt 0:10:35]} Qxd5 {[%emt 0:01:51]} 9. O-O {[%emt 0:00:24]} Nf6 {[%emt 0:09:03]} 10. c3 {[%emt 0:02:57]} Bc5 {[%emt 0:07:45]} 11. cxd4 {[%emt 0:06:13]} Ba7 {[%emt 0:02:16]} 12. b3 {[%emt 0:00:25]} O-O {[%emt 0:05:56]} 13. Bb2 {[%emt 0:03:47]} b5 {[%emt 0:06:03]} 14. Nf4 {[%emt 0:10:50]} Qg5 {[%emt 0:05:44]} 15. Qf3 {[%emt 0:05:53]} Rb8 {[%emt 0:25:44]} 16. Qg3 {[%emt 0:06:44]} Qxg3 {[%emt 0:01:46]} 17. hxg3 {[%emt 0:00:38]} Bb7 {[%emt 0:02:03]} 18. Ne2 {[%emt 0:09:10]} Rfd8 {[%emt 0:01:39]} 19. Rac1 {[%emt 0:01:30]} Bd5 {[%emt 0:02:24]} 20. Ba3 {[%emt 0:05:12]} b4 {[%emt 0:01:43]} 21. Bb2 {[%emt 0:00:36]} a5 {[%emt 0:01:25]} 22. Bc4 {[%emt 0:01:22]} Bb6 {[%emt 0:02:08]} 23. d3 {[%emt 0:02:17]} Ra8 {[%emt 0:05:39]} 24. a4 {[%emt 0:04:39]} h6 {[%emt 0:01:44]} 25. Rfe1 {[%emt 0:03:16]} g5 {[%emt 0:00:18]} 26. f3 {[%emt 0:01:21]} Kg7 {[%emt 0:00:51]} 27. Rcd1 {[%emt 0:02:47]} Rd6 {[%emt 0:00:27]} 28. g4 {[%emt 0:00:31]} Rad8 {[%emt 0:00:58]} 29. Kf1 {[%emt 0:01:43]} Bb7 {[%emt 0:00:53]} 30. Ng3 {[%emt 0:03:30]} Bxd4 {[%emt 0:02:07]} 31. Bxd4 {[%emt 0:00:36]} Rxd4 {[%emt 0:00:07]} 32. Kf2 {[%emt 0:00:51]} R4d6 {[%emt 0:01:33]} 33. Nh5+ {[%emt 0:02:00]} Nxh5 {[%emt 0:00:18]} 34. gxh5 {[%emt 0:00:03]} Bd5 {[%emt 0:00:30]} 35. Rc1 {[%emt 0:01:42]} Kf6 {[%emt 0:01:39]} 36. g4 {[%emt 0:00:57]} Ke7 {[%emt 0:00:58]} 37. Re3 {[%emt 0:00:48]} Bxc4 {[%emt 0:00:58]} 38. dxc4 {[%emt 0:00:21]} Rd2+ {[%emt 0:00:05]} 39. Re2 {[%emt 0:01:05]} R8d3 {[%emt 0:00:07]} 40. Rce1 {[%emt 0:06:53]} Kd6 {[%emt 0:01:20]} 41. Rxd2 {[%emt 0:00:24]} Rxd2+ {[%emt 0:00:06]} 42. Re2 {[%emt 0:00:06]} Rd1 {[%emt 0:00:53]} 43. Ke3 {[%emt 0:01:56]} Rb1 {[%emt 0:00:52]} 44. Rd2+ {[%emt 0:00:11]} Ke5 {[%emt 0:00:16]} 45. Rd7 {[%emt 0:04:29]} Rxb3+ {[%emt 0:00:08]} 46. Ke2 {[%emt 0:00:37]} Ra3 {[%emt 0:01:20]} 47. Rxf7 {[%emt 0:00:31]} Rxa4 {[%emt 0:00:05]} 48. Rb7 {[%emt 0:00:26]} Kd4 {[%emt 0:00:44]} 49. Kf2 {[%emt 0:00:35]} Kxc4 {[%emt 0:00:18]} 50. f4 {[%emt 0:00:23]} Ra2+ {[%emt 0:00:39]} 51. Kg1 {[%emt 0:00:28]} gxf4 {[%emt 0:00:46]} 52. g5 {[%emt 0:00:03]} hxg5 {[%emt 0:00:13]} 53. h6 {[%emt 0:00:17]} Rd2 {[%emt 0:00:06]} 54. Rc7+ {[%emt 0:00:31]} Kb3 {[%emt 0:00:16]} 55. Rg7 {[%emt 0:00:45]} Rd8 {[%emt 0:00:24]} 56. Rxg5 {[%emt 0:00:13]} a4 {[%emt 0:00:17]} 57. h7 {[%emt 0:00:10]} Rh8 {[%emt 0:00:05]} 0-1